lending/lending_fUSD_20240110
["ID","MTS","AMOUNT","RATE_DAILY","PERIOD"]
[311058289,1704891117187,-1450.1,0.0003178,2]
[311058290,1704891117199,-1551.81,0.0003178,2]
[311058291,1704891117208,-602.13,0.0003178,2]
[311058292,1704891117218,-754.64,0.0003178,2]
[311058293,1704891117228,-3512.62,0.0003178,2]
[311058294,1704891117238,-500.0,0.0003178,2]
[311058295,1704891117249,-500.0,0.0003178,2]
[311058296,1704891117263,-1650.34,0.0003178,2]
[311058297,1704891117273,-813.75,0.0003178,2]
[311058298,1704891117282,-2261.23,0.0003178,2]
[311058299,1704891117293,-7021.11,0.0003178,2]
[311058300,1704891117303,-4708.93,0.0003178,2]
[311058301,1704891117319,-854.64,0.0003178,2]
[311058302,1704891117329,-2547.75,0.0003178,2]
[311058303,1704891117339,-253488.437531,0.000318,2]
[311058304,1704891117349,-247.31,0.00031866,2]
[311058305,1704891117359,-248.54946957,0.000319,2]
[311058306,1704891117369,-2000.0,0.0003193,2]
[311058307,1704891117379,-2000.0,0.00031939,2]
[311058308,1704891117389,-200.0,0.00031939,2]
[311058309,1704891117399,-200.0,0.00031939,2]
[311058310,1704891117408,-200.0,0.00031939,2]
[311058311,1704891117418,-8563.99992906,0.00031954,3]
[311058312,1704891117427,-150.0,0.00031957,2]
[311058313,1704891117436,-150.0,0.00031999,2]
[311058314,1704891117446,-50000.0,0.00032,2]
[311058315,1704891117455,-12148.6076823,0.00032,2]
[311058316,1704891117465,-2000.0,0.00032,2]
[311058317,1704891117474,-373.9421902,0.00032,33]
[311058318,1704891117484,-165.491669,0.00032,3]
[311058319,1704891117494,-3000.0,0.00032,2]
[311058320,1704891117504,-3000.0,0.0003201,2]
[311058321,1704891117514,-3000.0,0.0003202,2]
[311058322,1704891117523,-3000.0,0.0003203,2]
[311058323,1704891117532,-3000.0,0.0003204,2]
[311058324,1704891117541,-3238.732501,0.0003205,2]
[311058325,1704891117550,-150.0,0.00032053,2]
[311058326,1704891117559,-1305.2,0.00032054,2]
[311058327,1704891117569,-1164.78,0.00032054,2]
[311058328,1704891117578,-632.81,0.00032054,2]
[311058329,1704891117588,-500.0,0.00032054,2]
[311058330,1704891117598,-691.12,0.00032054,2]
[311058331,1704891117607,-610.62,0.00032054,2]
[311058332,1704891117617,-570.49,0.00032054,2]
[311058333,1704891117626,-648.06,0.00032054,2]
[311058334,1704891117636,-186.26455685,0.00032054,2]
[311058335,1704891117646,-528.22,0.00032054,2]
[311058336,1704891117656,-168.59726113,0.00032054,2]
[311058337,1704891117665,-500.0,0.00032054,2]
[311058338,1704891117675,-613.28,0.00032054,2]
[311058339,1704891117685,-500.0,0.00032054,2]
[311058340,1704891117695,-500.0,0.00032054,2]
[311058341,1704891117705,-606.62,0.00032054,2]
[311058342,1704891117715,-1296.75,0.00032054,2]
[311058343,1704891117724,-500.0,0.00032054,2]
[311058344,1704891117734,-549.61,0.00032054,2]
[311058345,1704891117744,-539.9,0.00032054,2]
[311058346,1704891117754,-500.0,0.00032054,2]
[311058347,1704891117764,-500.0,0.00032054,2]
[311058348,1704891117774,-554.24,0.00032054,2]
[311058349,1704891117783,-500.0,0.00032054,2]
[311058350,1704891117793,-500.0,0.00032054,2]
[311058351,1704891117802,-604.42,0.00032054,2]
[311058352,1704891117812,-597.45,0.00032054,2]
[311058353,1704891117821,-500.0,0.00032054,2]
[311058354,1704891117830,-500.0,0.00032054,2]
[311058355,1704891117840,-715.45,0.00032054,2]
[311058356,1704891117849,-731.09,0.00032054,2]
[311058357,1704891117859,-500.0,0.00032054,2]
[311058358,1704891117869,-767.17,0.00032054,2]
[311058359,1704891117878,-1110.47,0.00032054,2]
[311058360,1704891117888,-500.0,0.00032054,2]
[311058361,1704891117900,-500.0,0.00032054,2]
[311058362,1704891117909,-500.0,0.00032054,2]
[311058363,1704891117919,-500.0,0.00032054,2]
[311058364,1704891117928,-914.12,0.00032054,2]
[311058365,1704891117938,-500.0,0.00032054,2]
[311058366,1704891117947,-500.0,0.00032054,2]
[311058367,1704891117957,-500.0,0.00032054,2]
[311058368,1704891117966,-500.0,0.00032054,2]
[311058369,1704891117976,-500.0,0.00032054,2]
[311058370,1704891117985,-503.02401559,0.00032054,2]
[311058371,1704891117995,-843.45,0.00032054,2]
[311058372,1704891118004,-540.71,0.00032054,2]
[311058373,1704891118014,-500.0,0.00032054,2]
[311058374,1704891118023,-833.64,0.00032054,2]
[311058375,1704891118033,-500.0,0.00032054,2]
[311058376,1704891118042,-500.0,0.00032054,2]
[311058377,1704891118052,-919.36,0.00032054,2]
[311058378,1704891118062,-500.0,0.00032054,2]
[311058379,1704891118071,-500.0,0.00032054,2]
[311058380,1704891118081,-500.0,0.00032054,2]
[311058381,1704891118090,-780.81,0.00032054,4]
[311058382,1704891118100,-640.3968696,0.00032054,2]
[311058383,1704891118110,-673.2,0.00032054,2]
[311058384,1704891118120,-549.17,0.00032054,2]
[311058385,1704891118129,-500.0,0.00032054,2]
[311058386,1704891118139,-592.78,0.00032054,10]
[311058387,1704891118150,-929.48,0.00032054,2]
[311058388,1704891118159,-500.0,0.00032054,2]
[311058389,1704891118168,-783.37,0.00032054,2]
[311058390,1704891118177,-500.0,0.00032054,2]
[311058391,1704891118186,-526.95,0.00032054,2]
[311058392,1704891118195,-500.0,0.00032054,2]
[311058393,1704891118205,-718.34,0.00032054,2]
[311058394,1704891118214,-500.0,0.00032054,2]
[311058395,1704891118224,-796.39,0.00032054,2]
[311058396,1704891118233,-334.7227158,0.00032054,2]
[311058397,1704891118243,-516.97,0.00032054,2]
[311058398,1704891118252,-603.93,0.00032054,2]
[311058399,1704891118261,-953.36,0.00032054,2]
[311058400,1704891118271,-595.36,0.00032054,2]
[311058401,1704891118281,-999.87,0.00032054,2]
[311058402,1704891118291,-799.61,0.00032054,2]
[311058403,1704891118301,-500.0,0.00032054,2]
[311058404,1704891118314,-679.43,0.00032054,2]
[311058405,1704891118323,-545.66,0.00032054,2]
[311058406,1704891118333,-911.61,0.00032054,2]
[311058407,1704891118342,-608.6,0.00032054,2]
[311058408,1704891118352,-500.0,0.00032054,2]
[311058409,1704891118362,-500.0,0.00032054,2]
[311058410,1704891118373,-500.0,0.00032054,2]
[311058411,1704891118382,-528.0,0.00032054,2]
[311058412,1704891118392,-717.61,0.00032054,2]
[311058413,1704891118403,-668.27,0.00032054,2]
[311058414,1704891118412,-500.0,0.00032054,2]
[311058415,1704891118422,-922.19,0.00032054,2]
[311058416,1704891118432,-300.0,0.00032054,2]
[311058417,1704891118441,-500.0,0.00032054,2]
[311058418,1704891118451,-500.0,0.00032054,2]
[311058419,1704891118461,-500.0,0.00032054,2]
[311058420,1704891118471,-500.0,0.00032054,2]
[311058421,1704891118481,-466.01411217,0.00032054,2]
[311058422,1704891118491,-1150.48,0.00032054,2]
[311058423,1704891118501,-500.0,0.00032054,2]
[311058424,1704891118511,-500.0,0.00032054,2]
[311058425,1704891118520,-500.0,0.00032054,2]
[311058426,1704891118530,-856.23,0.00032054,2]
[311058427,1704891118540,-500.0,0.00032054,2]
[311058428,1704891118550,-500.0,0.00032054,2]
[311058429,1704891118559,-943.83,0.00032054,2]
[311058430,1704891118569,-677.16,0.00032054,2]
[311058431,1704891118578,-1357.7,0.00032054,2]
[311058432,1704891118587,-819.95,0.00032054,2]
[311058433,1704891118597,-944.54,0.00032054,2]
[311058434,1704891118606,-613.7,0.00032054,2]
[311058435,1704891118616,-845.23,0.00032054,2]
[311058436,1704891118625,-1144.78,0.00032054,2]
[311058437,1704891118635,-500.0,0.00032054,2]
[311058438,1704891118644,-572.57,0.00032054,2]
[311058439,1704891118655,-523.04,0.00032054,2]
[311058440,1704891118665,-500.0,0.00032054,2]
[311058441,1704891118675,-981.88,0.00032054,2]
[311058442,1704891118684,-500.0,0.00032054,2]
[311058443,1704891118694,-205.05776727,0.00032054,2]
[311058444,1704891118704,-500.0,0.00032054,2]
[311058445,1704891118714,-500.0,0.00032054,2]
[311058446,1704891118723,-500.0,0.00032054,2]
[311058447,1704891118733,-1009.3,0.00032054,2]
[311058448,1704891118742,-500.0,0.00032054,2]
[311058449,1704891118752,-804.49,0.00032054,2]
[311058450,1704891118762,-500.0,0.00032054,2]
[311058451,1704891118772,-679.35,0.00032054,2]
[311058452,1704891118781,-626.97,0.00032054,2]
[311058453,1704891118791,-688.65,0.00032054,2]
[311058454,1704891118801,-1228.41,0.00032054,2]
[311058455,1704891118811,-835.39,0.00032054,2]
[311058456,1704891118821,-500.0,0.00032054,2]
[311058457,1704891118830,-567.03,0.00032054,2]
[311058458,1704891118840,-664.11,0.00032054,2]
[311058459,1704891118849,-699.18,0.00032054,2]
[311058460,1704891118859,-729.83,0.00032054,2]
[311058461,1704891118868,-500.0,0.00032054,2]
[311058462,1704891118878,-574.64,0.00032054,2]
[311058463,1704891118887,-847.62,0.00032054,2]
[311058464,1704891118898,-500.0,0.00032054,2]
[311058465,1704891118910,-1277.67,0.00032054,2]
[311058466,1704891118920,-755.08,0.00032054,2]
[311058467,1704891118930,-1281.13,0.00032054,2]
[311058468,1704891118939,-500.0,0.00032054,2]
[311058469,1704891119041,-667.72,0.00032054,2]
[311058470,1704891119051,-1050.74,0.00032054,2]
[311058471,1704891119062,-1129.59,0.00032054,2]
[311058472,1704891119071,-500.0,0.00032054,2]
[311058473,1704891119081,-1299.52,0.00032054,2]
[311058474,1704891119091,-500.0,0.00032054,2]
[311058475,1704891119101,-500.0,0.00032054,2]
[311058476,1704891119111,-500.0,0.00032054,2]
[311058477,1704891119120,-665.14,0.00032054,2]
[311058478,1704891119129,-1462.15,0.00032054,2]
[311058479,1704891119139,-883.1,0.00032054,2]
[311058480,1704891119151,-736.72,0.00032054,2]
[311058481,1704891119161,-932.0,0.00032054,2]
[311058482,1704891119171,-500.0,0.00032054,2]
[311058483,1704891119181,-933.85,0.00032054,2]
[311058484,1704891119191,-715.55,0.00032054,2]
[311058485,1704891119201,-1106.31,0.00032054,2]
[311058486,1704891119211,-500.0,0.00032054,2]
[311058487,1704891119221,-500.0,0.00032054,2]
[311058488,1704891119230,-616.84,0.00032054,2]
[311058489,1704891119240,-989.02,0.00032054,2]
[311058490,1704891119250,-500.0,0.00032054,2]
[311058491,1704891119260,-500.0,0.00032054,2]
[311058492,1704891119270,-1108.12,0.00032054,2]
[311058493,1704891119280,-1195.8,0.00032054,2]
[311058494,1704891119290,-1806.82,0.00032054,2]
[311058495,1704891119299,-915.35,0.00032054,2]
[311058496,1704891119313,-1387.71,0.00032054,2]
[311058497,1704891119322,-1503.57,0.00032054,2]
[311058498,1704891119332,-556.89,0.00032054,2]
[311058499,1704891119342,-728.24,0.00032054,2]
[311058500,1704891119351,-1262.12,0.00032054,2]
[311058501,1704891119361,-749.59,0.00032054,2]
[311058502,1704891119371,-500.0,0.00032054,2]
[311058503,1704891119381,-500.0,0.00032054,2]
[311058504,1704891119391,-968.99,0.00032054,2]
[311058505,1704891119400,-1148.53,0.00032054,2]
[311058506,1704891119411,-500.0,0.00032054,2]
[311058507,1704891119421,-1486.97,0.00032054,2]
[311058508,1704891119431,-1273.18,0.00032054,2]
[311058509,1704891119441,-500.0,0.00032054,2]
[311058510,1704891119452,-500.0,0.00032054,2]
[311058511,1704891119462,-1334.19,0.00032054,2]
[311058512,1704891119472,-259.41858495,0.00032054,2]
[311058513,1704891119482,-810.04,0.00032054,2]
[311058514,1704891119491,-884.9,0.00032054,2]
[311058515,1704891119501,-945.46,0.00032054,2]
[311058516,1704891119510,-500.0,0.00032054,2]
[311058517,1704891119520,-566.84,0.00032054,2]
[311058518,1704891119530,-500.0,0.00032054,2]
[311058519,1704891119539,-500.0,0.00032054,2]
[311058520,1704891119549,-659.65,0.00032054,2]
[311058521,1704891119558,-1698.48,0.00032054,2]
[311058522,1704891119567,-1658.69,0.00032054,2]
[311058523,1704891119577,-1894.62,0.00032054,2]
[311058524,1704891119586,-530.43,0.00032054,2]
[311058525,1704891119596,-648.28,0.00032054,2]
[311058526,1704891119605,-635.25,0.00032054,2]
[311058527,1704891119614,-716.26,0.00032054,2]
[311058528,1704891119623,-491.9004523,0.00032054,2]
[311058529,1704891119633,-500.0,0.00032054,2]
[311058530,1704891119642,-659.2,0.00032054,2]
[311058531,1704891119652,-1075.0,0.00032054,2]
[311058532,1704891119662,-912.69,0.00032054,2]
[311058533,1704891119671,-500.0,0.00032054,2]
[311058534,1704891119680,-500.0,0.00032054,2]
[311058535,1704891119689,-500.0,0.00032054,2]
[311058536,1704891119698,-994.89,0.00032054,2]
[311058537,1704891119707,-536.25,0.00032054,2]
[311058538,1704891119716,-500.0,0.00032054,2]
[311058539,1704891119725,-535.04,0.00032054,2]
[311058540,1704891119735,-763.92,0.00032054,2]
[311058541,1704891119744,-1507.5,0.00032054,2]
[311058542,1704891119753,-1352.86,0.00032054,2]
[311058543,1704891119762,-500.0,0.00032054,2]
[311058544,1704891119771,-763.85,0.00032054,2]
[311058545,1704891119781,-500.0,0.00032054,2]
[311058546,1704891119797,-1058.85,0.00032054,2]
[311058547,1704891119810,-173.11,0.00032054,2]
[311058548,1704891119819,-1144.7,0.00032054,2]
[311058549,1704891119828,-592.06,0.00032054,2]
[311058550,1704891119838,-500.0,0.00032054,2]
[311058551,1704891119847,-982.41,0.00032054,2]
[311058552,1704891119856,-500.0,0.00032054,2]
[311058553,1704891119865,-500.0,0.00032054,2]
[311058554,1704891119875,-500.0,0.00032054,2]
[311058555,1704891119884,-960.45,0.00032054,2]
[311058556,1704891119894,-500.0,0.00032054,2]
[311058557,1704891119904,-1268.39,0.00032054,2]
[311058558,1704891119914,-1176.82,0.00032054,2]
[311058559,1704891119923,-500.0,0.00032054,2]
[311058560,1704891119933,-1187.57,0.00032054,2]
[311058561,1704891119943,-1591.28,0.00032054,2]
[311058562,1704891119953,-500.0,0.00032054,2]
[311058563,1704891119962,-982.23,0.00032054,2]
[311058564,1704891119972,-960.81,0.00032054,2]
[311058565,1704891119982,-500.0,0.00032054,2]
[311058566,1704891119991,-1435.01,0.00032054,2]
[311058567,1704891120002,-1012.64,0.00032054,2]
[311058568,1704891120011,-1207.08,0.00032054,2]
[311058569,1704891120021,-771.19,0.00032054,2]
[311058570,1704891120030,-1395.58,0.00032054,2]
[311058571,1704891120040,-1179.08,0.00032054,2]
[311058572,1704891120049,-1128.18,0.00032054,2]
[311058573,1704891120059,-1055.12,0.00032054,2]
[311058574,1704891120069,-524.56,0.00032054,2]
[311058575,1704891120079,-500.0,0.00032054,2]
[311058576,1704891120088,-620.01,0.00032054,2]
[311058577,1704891120098,-1511.92,0.00032054,2]
[311058578,1704891120108,-835.1,0.00032054,2]
[311058579,1704891120118,-1185.27,0.00032054,2]
[311058580,1704891120128,-1387.63,0.00032054,2]
[311058581,1704891120138,-904.42,0.00032054,2]
[311058582,1704891120149,-500.0,0.00032054,2]
[311058583,1704891120159,-525.95,0.00032054,2]
[311058584,1704891120169,-1196.53,0.00032054,2]
[311058585,1704891120179,-1787.03,0.00032054,2]
[311058586,1704891120190,-674.1,0.00032054,2]
[311058587,1704891120200,-1077.63,0.00032054,2]
[311058588,1704891120209,-755.38,0.00032054,2]
[311058589,1704891120220,-500.0,0.00032054,2]
[311058590,1704891120230,-581.62,0.00032054,2]
[311058591,1704891120241,-1257.2,0.00032054,2]
[311058592,1704891120251,-1024.85,0.00032054,2]
[311058593,1704891120262,-500.0,0.00032054,2]
[311058594,1704891120272,-836.69,0.00032054,2]
[311058595,1704891120283,-500.0,0.00032054,2]
[311058596,1704891120294,-525.09,0.00032054,2]
[311058597,1704891120304,-500.0,0.00032054,2]
[311058598,1704891120318,-782.38,0.00032054,2]
[311058599,1704891120328,-1749.35,0.00032054,2]
[311058600,1704891120338,-1000.33,0.00032054,2]
[311058601,1704891120349,-604.42,0.00032054,2]
[311058602,1704891120359,-500.0,0.00032054,2]
[311058603,1704891120370,-500.0,0.00032054,2]
[311058604,1704891120380,-765.38,0.00032054,2]
[311058605,1704891120391,-878.75,0.00032054,2]
[311058606,1704891120405,-679.72,0.00032054,2]
[311058607,1704891120415,-1881.36,0.00032054,2]
[311058608,1704891120426,-500.0,0.00032054,2]
[311058609,1704891120436,-500.0,0.00032054,2]
[311058610,1704891120447,-631.79,0.00032054,2]
[311058611,1704891120457,-500.0,0.00032054,7]
[311058612,1704891120467,-500.0,0.00032054,2]
[311058613,1704891120477,-500.0,0.00032054,2]
[311058614,1704891120488,-1166.65,0.00032054,2]
[311058615,1704891120498,-756.6,0.00032054,2]
[311058616,1704891120509,-2844.34,0.00032054,2]
[311058617,1704891120520,-641.96,0.00032054,2]
[311058618,1704891120530,-500.0,0.00032054,2]
[311058619,1704891120540,-1044.01,0.00032054,2]
[311058620,1704891120550,-500.0,0.00032054,2]
[311058621,1704891120560,-500.0,0.00032054,2]
[311058622,1704891120570,-1332.76,0.00032054,2]
[311058623,1704891120580,-500.0,0.00032054,2]
[311058624,1704891120591,-1244.23,0.00032054,2]
[311058625,1704891120601,-729.63,0.00032054,2]
[311058626,1704891120611,-500.0,0.00032054,2]
[311058627,1704891120621,-757.76,0.00032054,2]
[311058628,1704891120632,-500.0,0.00032054,2]
[311058629,1704891120642,-500.0,0.00032054,2]
[311058630,1704891120656,-500.0,0.00032054,2]
[311058631,1704891120667,-500.0,0.00032054,2]
[311058632,1704891120677,-1044.13,0.00032054,2]
[311058633,1704891120687,-1127.84,0.00032054,2]
[311058634,1704891120698,-1154.12,0.00032054,2]
[311058635,1704891120708,-551.43,0.00032054,2]
[311058636,1704891120719,-1354.13,0.00032054,2]
[311058637,1704891120730,-500.0,0.00032054,2]
[311058638,1704891120741,-396.4148407,0.00032054,2]
[311058639,1704891120752,-638.51,0.00032054,2]
[311058640,1704891120762,-862.28,0.00032054,2]
[311058641,1704891120773,-1181.63,0.00032054,2]
[311058642,1704891120784,-757.94,0.00032054,2]
[311058643,1704891120794,-1015.59,0.00032054,2]
[311058644,1704891120804,-848.07,0.00032054,2]
[311058645,1704891120813,-823.4,0.00032054,2]
[311058646,1704891120824,-783.14,0.00032054,2]
[311058647,1704891120834,-500.0,0.00032054,2]
[311058648,1704891120844,-500.0,0.00032054,2]
[311058649,1704891120854,-1634.17,0.00032054,2]
[311058650,1704891120864,-892.34,0.00032054,2]
[311058651,1704891120874,-500.0,0.00032054,2]
[311058652,1704891120884,-500.0,0.00032054,2]
[311058653,1704891120894,-500.0,0.00032054,2]
[311058654,1704891120905,-1731.94,0.00032054,2]
[311058655,1704891120915,-1097.53,0.00032054,2]
[311058656,1704891120925,-1300.74,0.00032054,2]
[311058657,1704891120936,-1118.35,0.00032054,2]
[311058658,1704891120946,-821.71,0.00032054,2]
[311058659,1704891120955,-1115.5,0.00032054,2]
[311058660,1704891120965,-799.47,0.00032054,2]
[311058661,1704891120975,-500.0,0.00032054,2]
[311058662,1704891120986,-500.0,0.00032054,2]
[311058663,1704891120996,-500.0,0.00032054,2]
[311058664,1704891121006,-1438.57,0.00032054,2]
[311058665,1704891121016,-1466.84,0.00032054,2]
[311058666,1704891121027,-652.51,0.00032054,2]
[311058667,1704891121038,-500.0,0.00032054,2]
[311058668,1704891121050,-1106.08,0.00032054,2]
[311058669,1704891121060,-252.42687427,0.00032054,2]
[311058670,1704891121071,-1804.0,0.00032054,2]
[311058671,1704891121082,-1166.35,0.00032054,2]
[311058672,1704891121092,-500.0,0.00032054,2]
[311058673,1704891121102,-1196.42,0.00032054,2]
[311058674,1704891121113,-1134.06,0.00032054,2]
[311058675,1704891121123,-545.73,0.00032054,2]
[311058676,1704891121132,-848.12,0.00032054,2]
[311058677,1704891121143,-500.0,0.00032054,2]
[311058678,1704891121156,-500.0,0.00032054,2]
[311058679,1704891121166,-1566.38,0.00032054,2]
[311058680,1704891121176,-714.75,0.00032054,2]
[311058681,1704891121186,-907.54,0.00032054,2]
[311058682,1704891121196,-556.57,0.00032054,2]
[311058683,1704891121206,-924.42,0.00032054,2]
[311058684,1704891121215,-1841.24,0.00032054,2]
[311058685,1704891121226,-500.0,0.00032054,2]
[311058686,1704891121235,-2743.08,0.00032054,2]
[311058687,1704891121245,-500.0,0.00032054,2]
[311058688,1704891121255,-500.0,0.00032054,2]
[311058689,1704891121264,-500.0,0.00032054,2]
[311058690,1704891121274,-1407.91,0.00032054,2]
[311058691,1704891121284,-627.59,0.00032054,2]
[311058692,1704891121294,-1648.35,0.00032054,2]
[311058693,1704891121305,-546.87,0.00032054,2]
[311058694,1704891121321,-574.07,0.00032054,2]
[311058695,1704891121331,-1615.48,0.00032054,2]
[311058696,1704891121341,-555.68,0.00032054,2]
[311058697,1704891121351,-997.75,0.00032054,2]
[311058698,1704891121362,-1687.92,0.00032054,2]
[311058699,1704891121373,-783.23,0.00032054,2]
[311058700,1704891121383,-1436.16,0.00032054,2]
[311058701,1704891121393,-500.0,0.00032054,2]
[311058702,1704891121406,-608.29,0.00032054,2]
[311058703,1704891121416,-893.83,0.00032054,2]
[311058704,1704891121427,-1132.03,0.00032054,2]
[311058705,1704891121437,-1380.57,0.00032054,2]
[311058706,1704891121447,-933.87,0.00032054,2]
[311058707,1704891121458,-500.0,0.00032054,2]
[311058708,1704891121468,-500.0,0.00032054,2]
[311058709,1704891121479,-957.42,0.00032054,2]
[311058710,1704891121489,-995.9,0.00032054,2]
[311058711,1704891121500,-500.0,0.00032054,2]
[311058712,1704891121510,-1856.22,0.00032054,2]
[311058713,1704891121520,-895.94,0.00032054,2]
[311058714,1704891121530,-1480.74,0.00032054,2]
[311058715,1704891121540,-500.0,0.00032054,2]
[311058716,1704891121550,-500.0,0.00032054,2]
[311058717,1704891121560,-776.38,0.00032054,2]
[311058718,1704891121570,-1298.12,0.00032054,2]
[311058719,1704891121580,-333.27,0.00032054,2]
[311058720,1704891121590,-1188.98,0.00032054,2]
[311058721,1704891121600,-791.87,0.00032054,2]
[311058722,1704891121610,-500.0,0.00032054,2]
[311058723,1704891121620,-577.69,0.00032054,2]
[311058724,1704891121631,-700.71,0.00032054,2]
[311058725,1704891121642,-682.9,0.00032054,2]
[311058726,1704891121654,-1037.2,0.00032054,2]
[311058727,1704891121664,-500.0,0.00032054,2]
[311058728,1704891121674,-923.76,0.00032054,2]
[311058729,1704891121684,-1290.28,0.00032054,2]
[311058730,1704891121694,-694.02,0.00032054,2]
[311058731,1704891121704,-500.0,0.00032054,2]
[311058732,1704891121714,-672.12,0.00032054,2]
[311058733,1704891121725,-751.24,0.00032054,2]
[311058734,1704891121736,-791.74,0.00032054,2]
[311058735,1704891121745,-2135.41,0.00032054,2]
[311058736,1704891121756,-630.74,0.00032054,2]
[311058737,1704891121766,-500.0,0.00032054,2]
[311058738,1704891121776,-1065.89,0.00032054,2]
[311058739,1704891121787,-500.0,0.00032054,2]
[311058740,1704891121797,-500.0,0.00032054,2]
[311058741,1704891121807,-1611.31,0.00032054,2]
[311058742,1704891121817,-537.76,0.00032054,2]
[311058743,1704891121828,-500.0,0.00032054,2]
[311058744,1704891121838,-500.0,0.00032054,2]
[311058745,1704891121848,-500.0,0.00032054,2]
[311058746,1704891121858,-508.12,0.00032054,2]
[311058747,1704891121870,-500.0,0.00032054,2]
[311058748,1704891121881,-1096.88,0.00032054,2]
[311058749,1704891121892,-500.0,0.00032054,2]
[311058750,1704891121909,-1235.12,0.00032054,2]
[311058751,1704891121921,-500.0,0.00032054,2]
[311058752,1704891121933,-1332.96,0.00032054,2]
[311058753,1704891121944,-1351.54,0.00032054,2]
[311058754,1704891121956,-500.0,0.00032054,2]
[311058755,1704891121967,-500.0,0.00032054,2]
[311058756,1704891121978,-500.0,0.00032054,2]
[311058757,1704891121990,-525.51,0.00032054,2]
[311058758,1704891122000,-209.80393185,0.00032054,2]
[311058759,1704891122011,-640.35715299,0.00032054,2]
[311058760,1704891122023,-500.0,0.00032054,2]
[311058761,1704891122034,-500.0,0.00032054,2]
[311058762,1704891122045,-500.0,0.00032054,2]
[311058763,1704891122056,-551.86,0.00032054,2]
[311058764,1704891122066,-2153.22,0.00032054,2]
[311058765,1704891122076,-894.32,0.00032054,2]
[311058766,1704891122086,-1551.48,0.00032054,2]
[311058767,1704891122097,-1823.35,0.00032054,2]
[311058768,1704891122108,-656.22,0.00032054,2]
[311058769,1704891122119,-500.0,0.00032054,2]
[311058770,1704891122129,-500.0,0.00032054,2]
[311058771,1704891122140,-903.93,0.00032054,2]
[311058772,1704891122155,-784.54,0.00032054,2]
[311058773,1704891122165,-500.0,0.00032054,2]
[311058774,1704891122176,-1466.91,0.00032054,2]
[311058775,1704891122186,-1006.56,0.00032054,2]
[311058776,1704891122197,-1655.17,0.00032054,2]
[311058777,1704891122208,-3133.81,0.00032054,2]
[311058778,1704891122218,-761.32,0.00032054,2]
[311058779,1704891122229,-500.0,0.00032054,2]
[311058780,1704891122239,-500.0,0.00032054,2]
[311058781,1704891122248,-193.50630669,0.00032054,2]
[311058782,1704891122258,-500.0,0.00032054,2]
[311058783,1704891122268,-1170.77,0.00032054,2]
[311058784,1704891122279,-533.08,0.00032054,2]
[311058785,1704891122289,-500.0,0.00032054,2]
[311058786,1704891122300,-500.0,0.00032054,2]
[311058787,1704891122314,-1368.59,0.00032054,2]
[311058788,1704891122325,-661.49,0.00032054,2]